[Event "GER-chW Blitz 2019"]
[Site "Magdeburg"]
[Date "2019.05.25"]
[Round "11.3"]
[White "Kotyk, Valeriya"]
[Black "Hofmann, Karina"]
[Result "0-1"]
[ECO "A40"]
[WhiteElo "1739"]
[BlackElo "1700"]
[Annotator "NA"]
[PlyCount "92"]
[EventDate "2019.05.25"]
[EventType "tourn"]
[EventCountry "GER"]
[SourceTitle "playchess.com"]
[Source "ChessBase"]
[SourceQuality "1"]
[TimeControl "180+2"]

1. d4 {[%emt 0:00:00]} b6 {[%emt 0:00:00]} 2. c4 {[%emt 0:00:01]} Bb7 {[%emt 0:00:00]} 3. Nc3 {[%emt 0:00:01]} g6 {[%emt 0:00:03]} 4. e4 {[%emt 0:00:10]} Bg7 {[%emt 0:00:03]} 5. Be3 {[%emt 0:00:10]} e6 {[%emt 0:00:02]} 6. Nf3 {[%emt 0:00:02]} Ne7 {[%emt 0:00:01]} 7. Nd2 {[%emt 0:00:04]} c5 {[%emt 0:00:04]} 8. d5 {[%emt 0:00:02]} Bxc3 {[%emt 0:00:08]} 9. bxc3 {[%emt 0:00:02]} e5 {[%emt 0:00:01]} 10. Bd3 {[%emt 0:00:11]} d6 {[%emt 0:00:01]} 11. O-O {[%emt 0:00:02]} Nd7 {[%emt 0:00:24]} 12. a4 {[%emt 0:00:05]} a5 {[%emt 0:00:07]} 13. Bh6 {[%emt 0:00:09]} Qc7 {[%emt 0:00:09]} 14. Rb1 {[%emt 0:00:10]} O-O-O {[%emt 0:00:02]} 15. Qg4 {[%emt 0:00:19]} Kb8 {[%emt 0:00:03]} 16. Bg5 {[%emt 0:00:03]} f6 {[%emt 0:00:04]} 17. Bh6 {[%emt 0:00:02]} Rhg8 {[%emt 0:00:08]} 18. Qe6 {[%emt 0:00:05]} Rde8 {[%emt 0:00:13]} 19. Qh3 {[%emt 0:00:13]} g5 {[%emt 0:00:07]} 20. Be2 {[%emt 0:00:18]} Rg6 {[%emt 0:00:02]} 21. Bg4 {[%emt 0:00:03]} Bc8 {[%emt 0:00:08]} 22. Nb3 {[%emt 0:00:06]} Ka7 {[%emt 0:00:05]} 23. Rb2 {[%emt 0:00:02]} Nb8 {[%emt 0:00:21]} 24. f3 {[%emt 0:00:06]} Ng8 {[%emt 0:00:21]} 25. Bxg5 {[%emt 0:00:03]} Rxg5 {[%emt 0:00:04]} 26. Rfb1 {[%emt 0:00:06]} Bxg4 {[%emt 0:00:03]} 27. fxg4 {[%emt 0:00:01]} Nd7 {[%emt 0:00:05]} 28. Qf3 {[%emt 0:00:02]} h5 {[%emt 0:00:11]} 29. gxh5 {[%emt 0:00:03]} Nh6 {[%emt 0:00:02]} 30. Nd2 {[%emt 0:00:10]} Reg8 {[%emt 0:00:01]} 31. Nf1 {[%emt 0:00:03]} Ng4 {[%emt 0:00:03]} 32. h3 {[%emt 0:00:05]} Nh6 {[%emt 0:00:04]} 33. Ne3 {[%emt 0:00:01]} Qd8 {[%emt 0:00:06]} 34. Kh2 {[%emt 0:00:04]} Qf8 {[%emt 0:00:01]} 35. Nf5 {[%emt 0:00:12]} Nxf5 {[%emt 0:00:02]} 36. exf5 {[%emt 0:00:01]} Qg7 {[%emt 0:00:02]} 37. g4 {[%emt 0:00:05]} Qh7 {[%emt 0:00:02]} 38. Rc2 {[%emt 0:00:05]} R8g7 {[%emt 0:00:05]} 39. Rcb2 {[%emt 0:00:01]} Re7 {[%emt 0:00:09]} 40. Qe4 {[%emt 0:00:02]} Qh6 {[%emt 0:00:07]} 41. Rf2 {[%emt 0:00:02]} Rgg7 {[%emt 0:00:02]} 42. Qc2 {[%emt 0:00:03]} Qe3 {[%emt 0:00:01]} 43. Rd1 {[%emt 0:00:09]} e4 {[%emt 0:00:01]} 44. Qd2 {[%emt 0:00:06]} Qxd2 {[%emt 0:00:01]} 45. Rdxd2 {[%emt 0:00:01]} e3 {[%emt 0:00:01]} 46. Rde2 {[%emt 0:00:01]} exf2 {[%emt 0:00:01]} 0-1

[Event "GER-chW Blitz 2019"]
[Site "Magdeburg"]
[Date "2019.05.25"]
[Round "11.4"]
[White "Fuchs, Judith"]
[Black "Siegl, Melina"]
[Result "1-0"]
[ECO "A81"]
[WhiteElo "2218"]
[BlackElo "2029"]
[Annotator "NA"]
[PlyCount "41"]
[EventDate "2019.05.25"]
[EventType "tourn"]
[EventCountry "GER"]
[SourceTitle "playchess.com"]
[Source "ChessBase"]
[SourceQuality "1"]
[TimeControl "180+2"]

1. d4 {[%emt 0:00:00]} f5 {[%emt 0:00:01]} 2. g3 {[%emt 0:00:01]} d6 {[%emt 0:00:01]} 3. Bg2 {[%emt 0:00:01]} g6 {[%emt 0:00:01]} 4. h4 {[%emt 0:00:04]} Nf6 {[%emt 0:00:04]} 5. Nc3 {[%emt 0:00:10]} Bg7 {[%emt 0:00:02]} 6. Nh3 {[%emt 0:00:05]} O-O {[%emt 0:00:08]} 7. Ng5 {[%emt 0:00:11]} h6 {[%emt 0:00:08]} 8. Nh3 {[%emt 0:00:06]} Kh7 {[%emt 0:00:09]} 9. Bf4 {[%emt 0:00:08]} Qe8 {[%emt 0:00:03]} 10. Qd2 {[%emt 0:00:24]} e5 {[%emt 0:00:11]} 11. Be3 {[%emt 0:00:03]} Ng4 {[%emt 0:00:12]} 12. dxe5 {[%emt 0:00:23]} dxe5 {[%emt 0:00:02]} 13. Bc5 {[%emt 0:00:02]} Rf7 {[%emt 0:00:10]} 14. O-O-O {[%emt 0:00:03]} b6 {[%emt 0:00:15]} 15. Bxa8 {[%emt 0:00:05]} bxc5 {[%emt 0:00:02]} 16. Bf3 {[%emt 0:00:12]} Nf6 {[%emt 0:00:19]} 17. Qd8 {[%emt 0:00:09]} Qe6 {[%emt 0:00:23]} 18. Nd5 {[%emt 0:00:29]} e4 {[%emt 0:00:35]} 19. Ng5+ {[%emt 0:00:11]} hxg5 {[%emt 0:00:14]} 20. hxg5+ {[%emt 0:00:01]} Nh5 {[%emt 0:00:05]} 21. Bxh5 {[%emt 0:00:06]} 1-0

[Event "GER-chW Blitz 2019"]
[Site "Magdeburg"]
[Date "2019.05.25"]
[Round "11.5"]
[White "Lubbe, Melanie"]
[Black "Muetsch, Annmarie"]
[Result "1/2-1/2"]
[ECO "A45"]
[WhiteElo "2278"]
[BlackElo "2266"]
[Annotator "NA"]
[PlyCount "105"]
[EventDate "2019.05.25"]
[EventType "tourn"]
[EventCountry "GER"]
[SourceTitle "playchess.com"]
[Source "ChessBase"]
[SourceQuality "1"]
[TimeControl "180+2"]

1. d4 {[%emt 0:00:00]} Nf6 {[%emt 0:00:00]} 2. Nc3 {[%emt 0:00:00]} d5 {[%emt 0:00:02]} 3. Bf4 {[%emt 0:00:00]} a6 {[%emt 0:00:05]} 4. e3 {[%emt 0:00:03]} e6 {[%emt 0:00:02]} 5. g4 {[%emt 0:00:04]} Bb4 {[%emt 0:00:10]} 6. a3 {[%emt 0:00:17]} Bxc3+ 7. bxc3 {[%emt 0:00:01]} Ne4 {[%emt 0:00:13]} 8. Ne2 {[%emt 0:00:34]} Qh4 {[%emt 0:00:42]} 9. Ng3 {[%emt 0:00:08]} Nxc3 {[%emt 0:00:23]} 10. Qd2 {[%emt 0:00:06]} Ne4 {[%emt 0:00:08]} 11. Nxe4 {[%emt 0:00:16]} dxe4 {[%emt 0:00:01]} 12. Bxc7 {[%emt 0:00:12]} Qxg4 {[%emt 0:00:12]} 13. Be2 {[%emt 0:00:11]} Qf5 {[%emt 0:00:06]} 14. Rg1 {[%emt 0:00:10]} g5 {[%emt 0:00:14]} 15. Bg4 {[%emt 0:00:11]} Qg6 {[%emt 0:00:06]} 16. Qb4 {[%emt 0:00:38]} Nc6 {[%emt 0:00:17]} 17. Qc5 {[%emt 0:00:01]} Qf6 {[%emt 0:00:09]} 18. Rb1 {[%emt 0:00:12]} h5 {[%emt 0:00:22]} 19. Be2 {[%emt 0:00:03]} g4 {[%emt 0:00:02]} 20. Bf4 {[%emt 0:00:07]} Qf5 {[%emt 0:00:09]} 21. Qb6 {[%emt 0:00:13]} Qa5+ {[%emt 0:00:06]} 22. Qxa5 {[%emt 0:00:02]} Nxa5 {[%emt 0:00:01]} 23. Be5 {[%emt 0:00:01]} Rg8 {[%emt 0:00:02]} 24. h3 {[%emt 0:00:04]} f5 {[%emt 0:00:01]} 25. c4 {[%emt 0:00:05]} Nc6 {[%emt 0:00:03]} 26. Bf4 {[%emt 0:00:01]} Ne7 {[%emt 0:00:07]} 27. Kd2 {[%emt 0:00:03]} Ng6 {[%emt 0:00:02]} 28. hxg4 {[%emt 0:00:04]} hxg4 {[%emt 0:00:01]} 29. Bg3 {[%emt 0:00:01]} Rh8 {[%emt 0:00:02]} 30. Rh1 {[%emt 0:00:01]} Kf7 {[%emt 0:00:02]} 31. Rxh8 Nxh8 {[%emt 0:00:01]} 32. Kc3 {[%emt 0:00:03]} Ng6 {[%emt 0:00:02]} 33. d5 {[%emt 0:00:01]} exd5 34. cxd5 {[%emt 0:00:01]} b5 {[%emt 0:00:05]} 35. Kd4 {[%emt 0:00:01]} Bb7 {[%emt 0:00:02]} 36. Bd1 {[%emt 0:00:04]} Ke7 {[%emt 0:00:05]} 37. Bb3 {[%emt 0:00:01]} Kd7 38. Rc1 {[%emt 0:00:00]} Rc8 {[%emt 0:00:03]} 39. Rxc8 {[%emt 0:00:02]} Bxc8 {[%emt 0:00:02]} 40. Kc5 {[%emt 0:00:02]} Bb7 {[%emt 0:00:02]} 41. d6 {[%emt 0:00:02]} Nf8 {[%emt 0:00:02]} 42. Bf7 {[%emt 0:00:02]} Ne6+ {[%emt 0:00:02]} 43. Bxe6+ {[%emt 0:00:01]} Kxe6 {[%emt 0:00:01]} 44. Kb6 {[%emt 0:00:02]} Bc8 {[%emt 0:00:01]} 45. Kc7 {[%emt 0:00:01]} Bd7 {[%emt 0:00:01]} 46. Kb6 {[%emt 0:00:02]} Bc8 {[%emt 0:00:04]} 47. Kc7 {[%emt 0:00:01]} Bd7 {[%emt 0:00:00]} 48. Kd8 {[%emt 0:00:00]} Bc6 {[%emt 0:00:02]} 49. Kc7 {[%emt 0:00:01]} Bd7 {[%emt 0:00:01]} 50. Kb6 {[%emt 0:00:00]} Bc8 {[%emt 0:00:01]} 51. Kc7 {[%emt 0:00:04]} Bd7 {[%emt 0:00:01]} 52. Kb6 {[%emt 0:00:01]} Bc8 {[%emt 0:00:01]} 53. Kc7 {[%emt 0:00:03] Ke5} 1/2-1/2

[Event "GER-chW Blitz 2019"]
[Site "Magdeburg"]
[Date "2019.05.25"]
[Round "11.6"]
[White "Ries, Jutta"]
[Black "Michna, Marta"]
[Result "1/2-1/2"]
[ECO "A02"]
[WhiteElo "2017"]
[BlackElo "2355"]
[Annotator "NA"]
[PlyCount "62"]
[EventDate "2019.05.25"]
[EventType "tourn"]
[EventCountry "GER"]
[SourceTitle "playchess.com"]
[Source "ChessBase"]
[SourceQuality "1"]
[TimeControl "180+2"]

1. f4 {[%emt 0:00:00]} d6 {[%emt 0:00:01]} 2. Nf3 {[%emt 0:00:01]} Nf6 {[%emt 0:00:01]} 3. b3 {[%emt 0:00:11]} g6 {[%emt 0:00:05]} 4. Bb2 {[%emt 0:00:00]} Bg7 {[%emt 0:00:01]} 5. e3 {[%emt 0:00:01]} O-O {[%emt 0:00:01]} 6. Be2 {[%emt 0:00:01]} c6 {[%emt 0:00:04]} 7. O-O {[%emt 0:00:02]} a5 {[%emt 0:00:01]} 8. c4 {[%emt 0:00:11]} Nbd7 {[%emt 0:00:08]} 9. Nc3 {[%emt 0:00:02]} Re8 {[%emt 0:00:16]} 10. d4 {[%emt 0:00:05]} Qc7 {[%emt 0:00:16]} 11. Qd2 {[%emt 0:00:05]} Nb6 {[%emt 0:00:32]} 12. e4 {[%emt 0:00:15]} a4 {[%emt 0:00:05]} 13. e5 {[%emt 0:00:17]} Nfd7 {[%emt 0:00:09]} 14. Ne4 {[%emt 0:00:03]} Nf8 {[%emt 0:00:06]} 15. Bd3 {[%emt 0:00:27]} d5 {[%emt 0:00:04]} 16. Ng3 {[%emt 0:00:05]} e6 {[%emt 0:00:04]} 17. c5 {[%emt 0:00:02]} Nbd7 {[%emt 0:00:05]} 18. b4 {[%emt 0:00:05]} a3 {[%emt 0:00:05]} 19. Bc3 {[%emt 0:00:00]} b6 {[%emt 0:00:14]} 20. Rab1 {[%emt 0:00:05]} h6 {[%emt 0:00:23]} 21. Rfc1 {[%emt 0:00:13]} Ba6 {[%emt 0:00:06]} 22. Bxa6 {[%emt 0:00:19]} Rxa6 {[%emt 0:00:00]} 23. Qd3 {[%emt 0:00:03]} Rea8 {[%emt 0:00:02]} 24. Nd2 {[%emt 0:00:14]} h5 {[%emt 0:00:07]} 25. Ne2 {[%emt 0:00:04]} Nh7 {[%emt 0:00:07]} 26. Nb3 {[%emt 0:00:02]} Bh6 {[%emt 0:00:06]} 27. Bd2 {[%emt 0:00:01]} bxc5 {[%emt 0:00:10]} 28. bxc5 {[%emt 0:00:03]} Qd8 {[%emt 0:00:10]} 29. Rf1 {[%emt 0:00:11]} Nhf8 {[%emt 0:00:04]} 30. Be3 {[%emt 0:00:14]} Ra4 {[%emt 0:00:01]} 31. Nd2 {[%emt 0:00:03]} Rb8 {[%emt 0:00:09]} 1/2-1/2

[Event "GER-chW Blitz 2019"]
[Site "Magdeburg"]
[Date "2019.05.25"]
[Round "11.7"]
[White "Kushka, Alena"]
[Black "Osmanodja, Filiz"]
[Result "0-1"]
[ECO "E20"]
[WhiteElo "2148"]
[BlackElo "2260"]
[Annotator "NA"]
[PlyCount "96"]
[EventDate "2019.05.25"]
[EventType "tourn"]
[EventCountry "GER"]
[SourceTitle "playchess.com"]
[Source "ChessBase"]
[SourceQuality "1"]
[TimeControl "180+2"]

1. d4 {[%emt 0:00:00]} Nf6 {[%emt 0:00:00]} 2. c4 {[%emt 0:00:00]} e6 {[%emt 0:00:00]} 3. Nc3 {[%emt 0:00:02]} Bb4 {[%emt 0:00:00]} 4. f3 {[%emt 0:00:01]} d5 {[%emt 0:00:01]} 5. a3 {[%emt 0:00:01]} Bxc3+ {[%emt 0:00:01]} 6. bxc3 {[%emt 0:00:01]} O-O {[%emt 0:00:05]} 7. cxd5 {[%emt 0:00:04]} exd5 {[%emt 0:00:04]} 8. e3 {[%emt 0:00:01]} c5 {[%emt 0:00:01]} 9. Bd3 {[%emt 0:00:02]} Re8 {[%emt 0:00:02]} 10. Ne2 {[%emt 0:00:01]} Nc6 {[%emt 0:00:13]} 11. O-O {[%emt 0:00:03]} Ne7 {[%emt 0:00:10]} 12. e4 {[%emt 0:00:06]} cxd4 {[%emt 0:00:04]} 13. cxd4 {[%emt 0:00:02]} dxe4 {[%emt 0:00:12]} 14. fxe4 {[%emt 0:00:01]} Bg4 {[%emt 0:00:05]} 15. Be3 {[%emt 0:00:06]} Ned5 {[%emt 0:00:14]} 16. Bg5 {[%emt 0:00:34]} Nc3 {[%emt 0:00:22]} 17. Bxf6 {[%emt 0:00:28]} gxf6 {[%emt 0:00:04]} 18. Qd2 {[%emt 0:00:34]} Bxe2 {[%emt 0:00:50]} 19. Qxc3 {[%emt 0:00:05]} Rc8 {[%emt 0:00:06]} 20. Qxc8 {[%emt 0:00:31]} Qxd4+ {[%emt 0:00:18]} 21. Kh1 {[%emt 0:00:09]} Rxc8 {[%emt 0:00:07]} 22. Bxe2 {[%emt 0:00:01]} Qxe4 {[%emt 0:00:09]} 23. Bf3 {[%emt 0:00:03]} Qe7 {[%emt 0:00:18]} 24. Rfe1 {[%emt 0:00:07]} Qc5 {[%emt 0:00:08]} 25. Bxb7 {[%emt 0:00:03]} Rb8 {[%emt 0:00:02]} 26. Bf3 {[%emt 0:00:02]} Rb2 {[%emt 0:00:02]} 27. Rec1 {[%emt 0:00:06]} Qe3 {[%emt 0:00:02]} 28. Re1 {[%emt 0:00:01]} Qf4 {[%emt 0:00:03]} 29. Re4 {[%emt 0:00:07]} Qf5 {[%emt 0:00:07]} 30. Rae1 {[%emt 0:00:05]} h5 {[%emt 0:00:03]} 31. R4e3 {[%emt 0:00:08]} Qa5 {[%emt 0:00:02]} 32. Be4 {[%emt 0:00:05]} Rb3 {[%emt 0:00:04]} 33. Bf3 {[%emt 0:00:12]} Rxe3 {[%emt 0:00:03]} 34. Rxe3 {[%emt 0:00:01]} Qd2 {[%emt 0:00:01]} 35. Re8+ {[%emt 0:00:04]} Kg7 {[%emt 0:00:00]} 36. h3 {[%emt 0:00:02]} Qc1+ {[%emt 0:00:02]} 37. Kh2 {[%emt 0:00:02]} Qxa3 {[%emt 0:00:01]} 38. Bxh5 {[%emt 0:00:03]} Qd6+ {[%emt 0:00:01]} 39. Kh1 {[%emt 0:00:02]} Qc6 {[%emt 0:00:05]} 40. Re1 {[%emt 0:00:03]} a5 {[%emt 0:00:02]} 41. Bf3 {[%emt 0:00:02]} Qc3 {[%emt 0:00:01]} 42. Re4 {[%emt 0:00:03]} Qa1+ {[%emt 0:00:03]} 43. Kh2 {[%emt 0:00:01]} a4 {[%emt 0:00:01]} 44. Rg4+ {[%emt 0:00:05]} Kf8 {[%emt 0:00:01]} 45. Rb4 {[%emt 0:00:02]} a3 {[%emt 0:00:02]} 46. Rb8+ {[%emt 0:00:01]} Kg7 {[%emt 0:00:01]} 47. Ra8 {[%emt 0:00:03]} a2 {[%emt 0:00:05]} 48. Ra5 {[%emt 0:00:05]} Qe5+ {[%emt 0:00:04]} 0-1

[Event "GER-chW Blitz 2019"]
[Site "Magdeburg"]
[Date "2019.05.25"]
[Round "11.8"]
[White "Schulze, Lara"]
[Black "Sieber, Fiona"]
[Result "1-0"]
[ECO "C55"]
[WhiteElo "2160"]
[BlackElo "2250"]
[Annotator "NA"]
[PlyCount "69"]
[EventDate "2019.05.25"]
[EventType "tourn"]
[EventCountry "GER"]
[SourceTitle "playchess.com"]
[Source "ChessBase"]
[SourceQuality "1"]
[TimeControl "180+2"]

1. e4 {[%emt 0:00:00]} e5 {[%emt 0:00:00]} 2. Nf3 {[%emt 0:00:01]} Nc6 {[%emt 0:00:00]} 3. Bc4 {[%emt 0:00:00]} Nf6 {[%emt 0:00:01]} 4. d3 {[%emt 0:00:01]} Be7 {[%emt 0:00:01]} 5. Nc3 {[%emt 0:00:01]} O-O {[%emt 0:00:04]} 6. a3 {[%emt 0:00:01]} d6 {[%emt 0:00:03]} 7. O-O {[%emt 0:00:04]} Nd7 {[%emt 0:00:01]} 8. Nd5 {[%emt 0:00:15]} Nb6 {[%emt 0:00:03]} 9. Ba2 {[%emt 0:00:08]} Bg4 {[%emt 0:00:12]} 10. h3 {[%emt 0:00:07]} Be6 {[%emt 0:00:04]} 11. b4 {[%emt 0:00:15]} Qd7 {[%emt 0:00:04]} 12. Be3 {[%emt 0:00:11]} Kh8 {[%emt 0:00:04]} 13. d4 {[%emt 0:00:36]} exd4 {[%emt 0:00:18]} 14. Nxd4 {[%emt 0:00:02]} Ne5 {[%emt 0:00:23]} 15. Qe2 {[%emt 0:00:28]} Bxd5 {[%emt 0:00:17]} 16. Bxd5 {[%emt 0:00:23]} c6 {[%emt 0:00:15]} 17. Bb3 {[%emt 0:00:01]} Bf6 {[%emt 0:00:08]} 18. Rad1 {[%emt 0:00:06]} Rae8 {[%emt 0:00:02]} 19. Nf5 {[%emt 0:00:09]} Nc8 {[%emt 0:00:03]} 20. Bc5 {[%emt 0:00:14]} Be7 {[%emt 0:00:12]} 21. Nxe7 {[%emt 0:00:15]} Qxe7 {[%emt 0:00:01]} 22. Bd4 {[%emt 0:00:03]} f5 {[%emt 0:00:09]} 23. exf5 {[%emt 0:00:06]} Rxf5 {[%emt 0:00:02]} 24. f4 {[%emt 0:00:04]} Ng6 {[%emt 0:00:05]} 25. Qxe7 {[%emt 0:00:01]} Ncxe7 {[%emt 0:00:05]} 26. g3 {[%emt 0:00:05]} c5 {[%emt 0:00:13]} 27. Bf2 {[%emt 0:00:07]} Nc6 {[%emt 0:00:08]} 28. Rxd6 {[%emt 0:00:02]} cxb4 29. axb4 Nxb4 {[%emt 0:00:10]} 30. Bxa7 {[%emt 0:00:04]} Re2 {[%emt 0:00:11]} 31. Rf2 {[%emt 0:00:01]} Re1+ {[%emt 0:00:10]} 32. Kg2 {[%emt 0:00:02]} Ra1 {[%emt 0:00:21]} 33. Rd8+ {[%emt 0:00:01]} Rf8 {[%emt 0:00:06]} 34. Rxf8+ Nxf8 35. Bc5 1-0

[Event "GER-chW Blitz 2019"]
[Site "Magdeburg"]
[Date "2019.05.25"]
[Round "11.9"]
[White "Braje, Monika"]
[Black "Daemering, Katrin"]
[Result "0-1"]
[ECO "B21"]
[WhiteElo "1781"]
[BlackElo "2003"]
[Annotator "NA"]
[PlyCount "114"]
[EventDate "2019.05.25"]
[EventType "tourn"]
[EventCountry "GER"]
[SourceTitle "playchess.com"]
[Source "ChessBase"]
[SourceQuality "1"]
[TimeControl "180+2"]

1. e4 {[%emt 0:00:00]} c5 {[%emt 0:00:00]} 2. d4 {[%emt 0:00:01]} cxd4 {[%emt 0:00:01]} 3. c3 {[%emt 0:00:01]} d3 {[%emt 0:00:01]} 4. Bxd3 {[%emt 0:00:01]} d6 {[%emt 0:00:01]} 5. Nf3 {[%emt 0:00:01]} Nc6 {[%emt 0:00:01]} 6. h3 {[%emt 0:00:01]} g6 {[%emt 0:00:04]} 7. Qe2 {[%emt 0:00:02]} Bg7 {[%emt 0:00:01]} 8. O-O {[%emt 0:00:03]} Nf6 {[%emt 0:00:02]} 9. Bf4 {[%emt 0:00:02]} O-O {[%emt 0:00:08]} 10. Rd1 {[%emt 0:00:01]} e5 {[%emt 0:00:11]} 11. Bh2 {[%emt 0:00:02]} Qb6 {[%emt 0:00:06]} 12. Na3 {[%emt 0:00:06]} Be6 {[%emt 0:00:04]} 13. b3 {[%emt 0:00:08]} Rac8 {[%emt 0:00:11]} 14. Ng5 {[%emt 0:00:05]} Bd7 {[%emt 0:00:13]} 15. Nc4 {[%emt 0:00:02]} Qc7 {[%emt 0:00:01]} 16. Rac1 {[%emt 0:00:02]} h6 {[%emt 0:00:05]} 17. Nf3 {[%emt 0:00:01]} Be6 {[%emt 0:00:09]} 18. Ne3 {[%emt 0:00:02]} Rfd8 {[%emt 0:00:04]} 19. c4 {[%emt 0:00:02]} Qe7 {[%emt 0:00:09]} 20. Nd5 {[%emt 0:00:14]} Qe8 {[%emt 0:00:16]} 21. Bb1 {[%emt 0:00:05]} Kh7 {[%emt 0:00:05]} 22. Nd2 {[%emt 0:00:33]} Nd4 {[%emt 0:00:02]} 23. Qe3 {[%emt 0:00:11]} Nd7 {[%emt 0:00:13]} 24. Kh1 {[%emt 0:00:13]} Bxd5 {[%emt 0:00:18]} 25. exd5 {[%emt 0:00:01]} f5 {[%emt 0:00:07]} 26. Re1 {[%emt 0:00:07]} Qf7 {[%emt 0:00:08]} 27. Nf3 {[%emt 0:00:05]} Nxf3 {[%emt 0:00:14]} 28. Qxf3 {[%emt 0:00:02]} Nc5 {[%emt 0:00:03]} 29. b4 {[%emt 0:00:10]} Nd7 {[%emt 0:00:01]} 30. a3 {[%emt 0:00:04]} e4 {[%emt 0:00:03]} 31. Qe2 {[%emt 0:00:05]} Ne5 {[%emt 0:00:01]} 32. Red1 {[%emt 0:00:24]} Re8 {[%emt 0:00:02]} 33. Qe3 {[%emt 0:00:04]} Nxc4 {[%emt 0:00:03]} 34. Qxa7 {[%emt 0:00:06]} Ra8 {[%emt 0:00:09]} 35. Qxa8 {[%emt 0:00:16]} Rxa8 {[%emt 0:00:02]} 36. Rxc4 {[%emt 0:00:01]} Be5 {[%emt 0:00:20]} 37. Bg1 {[%emt 0:00:04]} Rd8 {[%emt 0:00:08]} 38. Rdc1 {[%emt 0:00:01]} Rd7 {[%emt 0:00:00]} 39. Bc2 {[%emt 0:00:04]} Qf6 {[%emt 0:00:02]} 40. Ba4 {[%emt 0:00:03]} Re7 {[%emt 0:00:02]} 41. Rc8 {[%emt 0:00:07]} Bb2 {[%emt 0:00:02]} 42. R1c2 {[%emt 0:00:01]} Bxa3 {[%emt 0:00:03]} 43. R8c7 {[%emt 0:00:04]} Bxb4 {[%emt 0:00:02]} 44. Rxe7+ {[%emt 0:00:08]} Qxe7 {[%emt 0:00:01]} 45. Rb2 {[%emt 0:00:02]} Bc5 {[%emt 0:00:03]} 46. Bh2 {[%emt 0:00:03]} b6 {[%emt 0:00:01]} 47. Bf4 {[%emt 0:00:01]} Qf7 {[%emt 0:00:03]} 48. Bc6 {[%emt 0:00:01]} Qf6 {[%emt 0:00:03]} 49. Ra2 {[%emt 0:00:02]} g5 {[%emt 0:00:03]} 50. Bd2 {[%emt 0:00:01]} Qd4 {[%emt 0:00:03]} 51. Be1 {[%emt 0:00:02]} Qd3 {[%emt 0:00:03]} 52. Kh2 {[%emt 0:00:06]} Bd4 {[%emt 0:00:02]} 53. Ra7+ {[%emt 0:00:01]} Kg6 {[%emt 0:00:02]} 54. Be8+ {[%emt 0:00:01]} Kf6 {[%emt 0:00:01]} 55. Bb4 {[%emt 0:00:06]} Be5+ {[%emt 0:00:06]} 56. g3 {[%emt 0:00:04]} Bd4 {[%emt 0:00:02]} 57. Kg2 {[%emt 0:00:02]} Qf3+ {[%emt 0:00:01] Kh1 Ke5+} 0-1

[Event "GER-chW Blitz 2019"]
[Site "Magdeburg"]
[Date "2019.05.25"]
[Round "11.10"]
[White "Mader, Lena"]
[Black "Kreismann, Franziska"]
[Result "0-1"]
[ECO "E62"]
[WhiteElo "1839"]
[BlackElo "1589"]
[Annotator "NA"]
[PlyCount "70"]
[EventDate "2019.05.25"]
[EventType "tourn"]
[EventCountry "GER"]
[SourceTitle "playchess.com"]
[Source "ChessBase"]
[SourceQuality "1"]
[TimeControl "180+2"]

1. c4 {[%emt 0:00:00]} g6 {[%emt 0:00:00]} 2. Nc3 {[%emt 0:00:01]} Bg7 {[%emt 0:00:01]} 3. g3 {[%emt 0:00:00]} Nf6 {[%emt 0:00:01]} 4. Bg2 {[%emt 0:00:01]} O-O {[%emt 0:00:01]} 5. Nf3 {[%emt 0:00:03]} d6 {[%emt 0:00:02]} 6. O-O {[%emt 0:00:07]} Nc6 {[%emt 0:00:03]} 7. d4 {[%emt 0:00:03]} Bg4 {[%emt 0:00:06]} 8. d5 {[%emt 0:00:08]} Bxf3 {[%emt 0:00:08]} 9. dxc6 {[%emt 0:00:17]} Bxc6 {[%emt 0:00:04]} 10. Bxc6 {[%emt 0:00:04]} bxc6 {[%emt 0:00:02]} 11. e4 {[%emt 0:00:10]} e5 {[%emt 0:00:08]} 12. Be3 {[%emt 0:00:11]} c5 {[%emt 0:00:05]} 13. h3 {[%emt 0:00:16]} a6 {[%emt 0:00:03]} 14. Kg2 {[%emt 0:00:13]} Re8 {[%emt 0:00:07]} 15. Qc2 {[%emt 0:00:06]} c6 {[%emt 0:00:06]} 16. Rfd1 {[%emt 0:00:13]} Qc7 {[%emt 0:00:14]} 17. Rd2 {[%emt 0:00:06]} Rad8 {[%emt 0:00:03]} 18. Rad1 {[%emt 0:00:01]} Re6 {[%emt 0:00:05]} 19. b3 {[%emt 0:00:25]} a5 {[%emt 0:00:03]} 20. Bxc5 {[%emt 0:00:19]} Ne8 {[%emt 0:00:07]} 21. Na4 {[%emt 0:00:10]} Rd7 {[%emt 0:00:41]} 22. Bb6 {[%emt 0:00:14]} Qb7 {[%emt 0:00:17]} 23. Bxa5 {[%emt 0:00:03]} Qa6 {[%emt 0:00:02]} 24. Bc3 {[%emt 0:00:12]} c5 {[%emt 0:00:14]} 25. Nxc5 {[%emt 0:00:14]} Qc6 {[%emt 0:00:10]} 26. Nxe6 {[%emt 0:00:03]} fxe6 {[%emt 0:00:02]} 27. Bb4 {[%emt 0:00:04]} Bf8 {[%emt 0:00:04]} 28. Rd3 {[%emt 0:00:06]} Qc7 {[%emt 0:00:04]} 29. Qd2 {[%emt 0:00:01]} Qc6 {[%emt 0:00:04]} 30. f3 {[%emt 0:00:01]} Kh8 {[%emt 0:00:04]} 31. Bc3 {[%emt 0:00:06]} Qc5 {[%emt 0:00:04]} 32. Qf2 {[%emt 0:00:03]} Qc6 {[%emt 0:00:02]} 33. a4 {[%emt 0:00:02]} Qb6 {[%emt 0:00:01]} 34. b4 {[%emt 0:00:01]} Qc7 {[%emt 0:00:01]} 35. a5 Qxc4 {[%emt 0:00:00]} 0-1

[Event "GER-chW Blitz 2019"]
[Site "Magdeburg"]
[Date "2019.05.25"]
[Round "11.11"]
[White "Zimmer, Elke"]
[Black "Kunze, Kerstin"]
[Result "0-1"]
[ECO "C55"]
[WhiteElo "1926"]
[BlackElo "2066"]
[Annotator "NA"]
[PlyCount "64"]
[EventDate "2019.05.25"]
[EventType "tourn"]
[EventCountry "GER"]
[SourceTitle "playchess.com"]
[Source "ChessBase"]
[SourceQuality "1"]
[TimeControl "180+2"]

1. e4 {[%emt 0:00:00]} e5 {[%emt 0:00:00]} 2. Nf3 {[%emt 0:00:00]} Nc6 {[%emt 0:00:00]} 3. Bc4 {[%emt 0:00:01]} Nf6 {[%emt 0:00:04]} 4. d3 {[%emt 0:00:01]} Be7 {[%emt 0:00:03]} 5. Nc3 {[%emt 0:00:02]} O-O {[%emt 0:00:01]} 6. O-O {[%emt 0:00:02]} d6 {[%emt 0:00:01]} 7. h3 {[%emt 0:00:01]} h6 {[%emt 0:00:02]} 8. Be3 {[%emt 0:00:09]} Na5 {[%emt 0:00:13]} 9. Bb3 {[%emt 0:00:01]} Be6 {[%emt 0:00:31]} 10. Qd2 {[%emt 0:00:39]} b6 {[%emt 0:00:23]} 11. Nd5 {[%emt 0:00:14]} Nxb3 {[%emt 0:00:08]} 12. Nxe7+ {[%emt 0:00:01]} Qxe7 {[%emt 0:00:01]} 13. axb3 {[%emt 0:00:01]} d5 {[%emt 0:00:08]} 14. exd5 {[%emt 0:00:39]} Bxd5 {[%emt 0:00:05]} 15. Qe2 {[%emt 0:00:18]} Nh5 {[%emt 0:00:27]} 16. Nd2 {[%emt 0:00:03]} Qh4 {[%emt 0:00:05]} 17. Ne4 {[%emt 0:00:11]} f5 {[%emt 0:00:11]} 18. c4 {[%emt 0:00:26]} Bc6 {[%emt 0:00:08]} 19. Nd2 {[%emt 0:00:11]} f4 {[%emt 0:00:03]} 20. Bd4 {[%emt 0:00:14]} f3 {[%emt 0:00:10]} 21. Qxe5 {[%emt 0:00:02]} fxg2 {[%emt 0:00:06]} 22. Qe6+ {[%emt 0:00:18]} Kh7 {[%emt 0:00:15]} 23. Rfe1 {[%emt 0:00:07]} Qxh3 {[%emt 0:00:13]} 24. Qxh3 Nf4 {[%emt 0:00:02]} 25. Qg4 {[%emt 0:00:06]} Ng6 26. Re6 {[%emt 0:00:02]} Be8 {[%emt 0:00:06]} 27. Rxg6 {[%emt 0:00:02]} Bxg6 {[%emt 0:00:01]} 28. Qe6 Rad8 29. Qe7 Rde8 30. Qxc7 Bxd3 31. Kxg2 Rd8 32. Nf3 Rg8 0-1